[Event "French Top 16-A 2024"]
[Site "Chartres"]
[Date "2024.06.01"]
[Round "3.13"]
[White "Flom, Gabriel"]
[Black "Malassagne, Raphael"]
[Result "1-0"]
[ECO "D10"]
[WhiteElo "2431"]
[BlackElo "2260"]
[Annotator "RC"]
[PlyCount "29"]
[EventDate "2024.06.01"]
[EventType "team-tourn"]
[EventCountry "FRA"]
[SourceTitle "playchess.com"]
[Source "ChessBase"]
[SourceQuality "1"]
[TimeControl "40/5400+30:1800+30"]

1. d4 {[%emt 0:00:25]} d5 {[%emt 0:00:46]} 2. c4 {[%emt 0:00:32]} c6 {[%emt 0:00:13]} 3. Nc3 {[%emt 0:01:49]} e5 {[%emt 0:00:04]} 4. cxd5 {[%emt 0:03:00]} cxd5 {[%emt 0:00:14]} 5. dxe5 {[%emt 0:00:22]} d4 {[%emt 0:00:11]} 6. Ne4 {[%emt 0:00:32]} Qa5+ {[%emt 0:00:08]} 7. Bd2 {[%emt 0:11:03]} Qxe5 {[%emt 0:00:26]} 8. Ng3 {[%emt 0:01:30]} Nf6 {[%emt 0:02:07]} 9. Nf3 {[%emt 0:01:23]} Qd6 {[%emt 0:00:05]} 10. Qa4+ {[%emt 0:15:10]} Nc6 {[%emt 0:01:22]} 11. b4 {[%emt 0:00:04]} b5 {[%emt 0:27:59]} 12. Qxb5 {[%emt 0:00:22]} Rb8 {[%emt 0:00:25]} 13. Qa4 {[%emt 0:03:15]} Bd7 {[%emt 0:11:38]} 14. b5 {[%emt 0:01:58]} Nb4 {[%emt 0:04:11]} 15. a3 {[%emt 0:00:11]} 1-0

[Event "French Top 16-A 2024"]
[Site "Chartres"]
[Date "2024.06.01"]
[Round "3.14"]
[White "Degraeve, Jean-Marc"]
[Black "Gharamian, Tigran"]
[Result "1-0"]
[ECO "B08"]
[WhiteElo "2463"]
[BlackElo "2588"]
[Annotator "TA"]
[PlyCount "45"]
[EventDate "2024.06.01"]
[EventType "team-tourn"]
[EventCountry "FRA"]
[SourceTitle "playchess.com"]
[Source "ChessBase"]
[SourceQuality "1"]
[TimeControl "40/5400+30:1800+30"]

{[%evp 15,45,40,62,56,106,111,95,102,123,128,197,202,280,276,275,259,223,176,327,341,329,320,581,498,806,766,933,949,1340,1355,1189,1188]} 1. e4 {[%emt 0:00:06]} g6 {[%emt 0:00:13]} 2. d4 {[%emt 0:00:17]} d6 {[%emt 0:00:08]} 3. Nc3 {[%emt 0:00:40]} a6 {[%emt 0:00:06]} 4. a4 {[%emt 0:02:50]} Bg7 {[%emt 0:04:50]} 5. Nf3 {[%emt 0:02:13]} Nf6 {[%emt 0:05:12]} 6. Be2 {[%emt 0:00:19]} O-O {[%emt 0:03:58]} 7. O-O {[%emt 0:00:14]} b6 {[%emt 0:01:36]} 8. Re1 {[%emt 0:08:14]} Bb7 {[%emt 0:05:26]} 9. e5 {[%emt 0:01:00][%cal Be4e5,Be5e6][%mdl 32]} Nd5 {[%emt 0:09:43]} (9... dxe5 $14 10. Nxe5 (10. dxe5 Nd5 $14) 10... Nfd7) 10. Nxd5 $16 {[%emt 0:09:30]} Bxd5 {[%emt 0:00:13]} 11. c4 {[%emt 0:01:01] White is better.} Bb7 {[%emt 0:01:16]} 12. e6 $1 {[%emt 0:00:15]} f5 {[%emt 0:01:40]} (12... Qe8 $16 {was worth a try.} 13. Ng5 f5) 13. d5 $18 {[%emt 0:04:10]} h6 {[%emt 0:02:40]} 14. Be3 {[%emt 0:04:43]} a5 {[%emt 0:01:13]} 15. Qd2 {[%emt 0:05:19]} Kh7 {[%emt 0:00:55]} 16. Ra3 {[%emt 0:12:17][%cal Oe3h6] [#] Strongly threatening Bxh6!} Rf6 $2 {[%emt 0:04:25]} (16... Na6 {keeps fighting.} 17. Bd4 Bf6) 17. Bd4 {[%emt 0:07:35]} Na6 {[%emt 0:01:52]} 18. Bd3 {[%emt 0:06:35][%cal Of3h4] aiming for Nh4!} Qh8 $2 {[%emt 0:04:29]} (18... Nb4 {might work better.} 19. Bb1 c5 20. Bxf6 Bxf6) 19. Bb1 {[%emt 0:00:34] White is clearly winning.} Kg8 {[%emt 0:01:06]} (19... Rff8 $142 20. Ng5+ Kg8) 20. Nh4 {[%emt 0:01:37]} Raf8 {[%emt 0:04:12]} 21. Rg3 {[%emt 0:01:53]} Qh7 {[%emt 0:02:52]} 22. Bxf6 {[%emt 0:01:03]} Rxf6 {[%emt 0:00:04] [#]} 23. Nxg6 $1 {[%emt 0:00:12][%mdl 512] Black did not feel at home in the position after the opening.   Weighted Error Value: White=0.12 (very precise) /Black=0.75.  Mistake:       	---       	Black=5      Inaccurate:     	---       	Black=1      OK:         	White=5     	Black=3      Best:        	White=2     	---        Strong:       	White=1     	---} 1-0

[Event "French Top 16-A 2024"]
[Site "Chartres"]
[Date "2024.06.01"]
[Round "3.14"]
[White "Saya, Ethan"]
[Black "Rottenwohrer Suarez, Juan"]
[Result "0-1"]
[ECO "E08"]
[WhiteElo "2234"]
[BlackElo "2322"]
[Annotator "RC"]
[PlyCount "87"]
[EventDate "2024.06.01"]
[EventType "team-tourn"]
[EventCountry "FRA"]
[SourceTitle "playchess.com"]
[Source "ChessBase"]
[SourceQuality "1"]
[TimeControl "40/5400+30:1800+30"]

1. d4 {[%emt 0:00:05]} Nf6 {[%emt 0:00:05]} 2. c4 {[%emt 0:00:05]} e6 {[%emt 0:00:04]} 3. Nf3 {[%emt 0:02:03]} d5 {[%emt 0:00:29]} 4. g3 {[%emt 0:00:30]} Bb4+ {[%emt 0:01:39]} 5. Bd2 {[%emt 0:03:43]} Be7 {[%emt 0:00:27]} 6. Bg2 {[%emt 0:00:06]} c6 {[%emt 0:00:49]} 7. Qc2 {[%emt 0:02:48]} Nbd7 {[%emt 0:02:17]} 8. O-O {[%emt 0:00:34]} O-O {[%emt 0:00:21]} 9. Bf4 {[%emt 0:02:19]} a5 {[%emt 0:01:08]} 10. Rd1 {[%emt 0:03:58]} a4 {[%emt 0:02:17]} 11. Ne5 {[%emt 0:06:19]} Qa5 {[%emt 0:03:29]} 12. Nd2 {[%emt 0:08:05]} Nxe5 {[%emt 0:13:11]} 13. Bxe5 {[%emt 0:05:33]} b5 {[%emt 0:04:04]} 14. cxd5 {[%emt 0:03:15]} cxd5 {[%emt 0:00:47]} 15. Rac1 {[%emt 0:00:27]} b4 {[%emt 0:12:04]} 16. e4 {[%emt 0:05:16]} Ba6 {[%emt 0:05:22]} 17. exd5 {[%emt 0:06:38]} Nxd5 {[%emt 0:04:54]} 18. Nc4 {[%emt 0:01:40]} Qd8 {[%emt 0:02:19]} 19. Ne3 {[%emt 0:09:51]} Bb7 {[%emt 0:06:25]} 20. Qc4 {[%emt 0:01:57]} Bg5 {[%emt 0:10:11]} 21. Bxd5 {[%emt 0:09:40]} Bxd5 {[%emt 0:01:47]} 22. Qxb4 {[%emt 0:00:10]} Bxa2 {[%emt 0:05:33]} 23. Rc7 {[%emt 0:03:19]} Bxe3 {[%emt 0:08:09]} 24. fxe3 {[%emt 0:00:25]} Qg5 {[%emt 0:00:29]} 25. Qd2 {[%emt 0:05:21]} Bd5 {[%emt 0:00:58]} 26. Rf1 {[%emt 0:00:51]} f6 {[%emt 0:05:32]} 27. Bd6 {[%emt 0:02:31]} Rfc8 {[%emt 0:00:29]} 28. Rf4 {[%emt 0:03:06]} Rxc7 {[%emt 0:01:37]} 29. Bxc7 {[%emt 0:00:02]} Qg6 {[%emt 0:00:47]} 30. Qe1 {[%emt 0:06:44]} Rc8 {[%emt 0:01:50]} 31. e4 {[%emt 0:00:38]} Ba8 {[%emt 0:01:09]} 32. Bd6 {[%emt 0:01:00]} Rc2 {[%emt 0:01:36]} 33. Qb4 {[%emt 0:02:31]} Qe8 {[%emt 0:00:24]} 34. Rf2 {[%emt 0:00:31]} Rc8 {[%emt 0:00:25]} 35. Re2 {[%emt 0:01:52]} Qh5 {[%emt 0:01:22]} 36. Qd2 {[%emt 0:00:17]} Qg4 {[%emt 0:01:03]} 37. d5 {[%emt 0:01:51]} exd5 {[%emt 0:01:02]} 38. exd5 {[%emt 0:00:08]} Qc4 {[%emt 0:01:04]} 39. Qe1 {[%emt 0:03:19]} Qd4+ {[%emt 0:00:45]} 40. Rf2 {[%emt 0:00:25]} Qxd5 {[%emt 0:00:31]} 41. Rd2 {[%emt 0:03:30]} Qh1+ {[%emt 0:00:54]} 42. Kf2 {[%emt 0:00:02]} Qg2+ {[%emt 0:00:05]} 43. Ke3 {[%emt 0:00:08]} Re8+ {[%emt 0:00:14]} 44. Kd4 {[%emt 0:28:57]} 0-1

[Event "French Top 16-A 2024"]
[Site "Chartres"]
[Date "2024.06.01"]
[Round "3.15"]
[White "Delorme, Axel"]
[Black "Pelletier, Yannick"]
[Result "1/2-1/2"]
[ECO "A30"]
[WhiteElo "2489"]
[BlackElo "2515"]
[Annotator "TA"]
[PlyCount "147"]
[EventDate "2024.06.01"]
[EventType "team-tourn"]
[EventCountry "FRA"]
[SourceTitle "playchess.com"]
[Source "ChessBase"]
[SourceQuality "1"]
[TimeControl "40/5400+30:1800+30"]

{[%evp 66,147,-31,-87,-85,-127,-127,-124,-70,-87,-34,-39,-9,-9,0,-65,0,-9,-9,-10,-10,-10,-10,-18,-10,-10,-18,-18,-18,-24,-18,-18,0,-22,0,-28,-23,-27,-20,-76,-71,-22,0,-22,0,-22,-22,-22,-22,-157,-156,-157,-157,-157,-156,-156,-158,-156,-156,-158,-156,-156,-156,-177,-279,-290,-138,-138,-138,-138,-138,-138,-138,-138,0,-138,0,-138,-138,-138,-138,-138,0,0]} 1. Nf3 {[%emt 0:00:20]} Nf6 {[%emt 0:00:39]} 2. g3 {[%emt 0:02:39]} b6 {[%emt 0:00:10]} 3. Bg2 {[%emt 0:00:44]} Bb7 {[%emt 0:00:11]} 4. O-O {[%emt 0:01:49]} c5 {[%emt 0:00:19]} 5. c4 {[%emt 0:00:54]} e6 {[%emt 0:00:30]} 6. Nc3 {[%emt 0:01:04]} Be7 {[%emt 0:00:07]} 7. d4 {[%emt 0:01:33]} cxd4 {[%emt 0:00:42]} 8. Qxd4 {[%emt 0:01:16]} d6 {[%emt 0:00:50]} 9. Rd1 {[%emt 0:01:31]} a6 {[%emt 0:01:52]} 10. Ng5 {[%emt 0:03:27]} Bxg2 {[%emt 0:01:11]} 11. Kxg2 {[%emt 0:00:07]} Nc6 {[%emt 0:08:11]} 12. Qf4 {[%emt 0:01:03]} Ra7 {[%emt 0:11:12]} 13. Nce4 {[%emt 0:20:32]} Rd7 {[%emt 0:00:37]} 14. Nxf6+ {[%emt 0:04:36]} Bxf6 {[%emt 0:00:22]} 15. Nxh7 {[%emt 0:13:26]} Rxh7 {[%emt 0:00:17]} 16. Qe4 {[%emt 0:00:27]} Rh5 {[%emt 0:00:29]} 17. Qxc6 {[%emt 0:00:36]} Rc5 {[%emt 0:00:23]} 18. Qa4 {[%emt 0:03:42]} Qa8+ {[%emt 0:10:48]} 19. f3 {[%emt 0:02:54]} Qc6 {[%emt 0:02:12]} 20. Qxc6 {[%emt 0:05:04]} Rxc6 {[%emt 0:00:05]} 21. Be3 {[%emt 0:06:15]} Rxc4 {[%emt 0:00:47]} 22. Rd2 {[%emt 0:04:40]} b5 {[%emt 0:03:21]} 23. Rad1 {[%emt 0:00:51]} d5 {[%emt 0:00:50]} 24. h4 {[%emt 0:00:30]} g6 {[%emt 0:11:56]} 25. b3 {[%emt 0:05:08]} Rc3 {[%emt 0:15:17]} 26. Bd4 {[%emt 0:00:23]} Bxd4 {[%emt 0:00:05]} 27. Rxd4 {[%emt 0:00:06]} a5 {[%emt 0:04:40]} 28. g4 {[%emt 0:09:04]} Rc2 {[%emt 0:07:54]} 29. R1d2 {[%emt 0:01:21]} Rdc7 {[%emt 0:00:04]} 30. Kg3 {[%emt 0:01:02]} Ke7 {[%emt 0:01:10]} 31. h5 {[%emt 0:04:32]} Kf6 {[%emt 0:05:04]} 32. hxg6 {[%emt 0:01:07]} fxg6 {[%emt 0:03:43]} 33. R4d3 {[%emt 0:01:14]} g5 {[%emt 0:01:33]} 34. Kf2 {[%emt 0:00:37]} (34. Rd4 $15) 34... Ke5 {[%emt 0:01:29]} 35. Re3+ {[%emt 0:00:31]} Kd6 {[%emt 0:00:12]} 36. Red3 {[%emt 0:00:20]} b4 {[%emt 0:00:44]} (36... Rxd2 $17 37. Rxd2 e5) 37. e3 $15 {[%emt 0:00:43]} Ke5 {[%emt 0:04:33]} ({Black should play} 37... R2c3 $17 {Strongly threatening ...Rxd3.} 38. Ke2 Rxd3 39. Rxd3 e5) 38. Ke2 {[%emt 0:00:19]} Rc1 {[%emt 0:03:22]} 39. Rd1 $1 {[%emt 0:00:50]} R1c2+ {[%emt 0:00:53]} ({Better is} 39... R1c3 $11) 40. R1d2 $15 {[%emt 0:00:06]} Rc1 {[%emt 0:00:14]} (40... R2c6 $15 41. Rd4 Rh7 42. f4+ gxf4 43. exf4+ Kf6) 41. Rd1 $1 $11 {[%emt 0:30:03]} Rxd1 {[%emt 0:08:49]} 42. Rxd1 {[%emt 0:00:00]} Rh7 {[%emt 0:00:09]} 43. Rd2 {[%emt 0:00:00]} Rh2+ {[%emt 0:00:57]} 44. Kd3 {[%emt 0:00:00]} Rh3 {[%emt 0:00:27]} 45. Ke2 {[%emt 0:00:00]} Kd6 {[%emt 0:00:33]} 46. Rc2 {[%emt 0:00:00]} e5 {[%emt 0:02:50]} 47. Rd2 {[%emt 0:00:00]} Rh8 {[%emt 0:02:25]} 48. Kd3 {[%emt 0:00:00]} Rh3 {[%emt 0:00:44]} 49. Ke2 {[%emt 0:00:00]} Rh8 {[%emt 0:00:05]} 50. Kd3 {[%emt 0:00:00]} Rf8 {[%emt 0:02:55]} 51. Ke2 {[%emt 0:00:00]} Rc8 {[%emt 0:01:45]} 52. Rd3 {[%emt 0:00:00]} (52. Kd1 $11) 52... Rc2+ $17 {[%emt 0:00:43]} 53. Rd2 {[%emt 0:00:00]} Rc8 {[%emt 0:00:09]} 54. Rd3 {[%emt 0:00:00]} Rc2+ {[%emt 0:00:57]} 55. Rd2 {[%emt 0:00:00]} Rc3 {[%emt 0:00:03]} 56. Rd3 {[%emt 0:00:00]} Kc5 {[%emt 0:03:56]} 57. Kd2 {[%emt 0:00:00]} (57. e4 $1 $11) 57... d4 $17 {[%emt 0:00:30]} 58. Ke2 {[%emt 0:00:00]} Kd5 {[%emt 0:03:15]} 59. Kd2 {[%emt 0:00:20]} Rc8 {[%emt 0:00:25]} 60. Kd1 {[%emt 0:02:35]} Rc7 {[%emt 0:03:09]} 61. Kd2 {[%emt 0:08:07]} Rc3 {[%emt 0:00:07]} 62. e4+ {[%emt 0:02:03]} Kc5 {[%emt 0:00:14]} 63. Ke2 {[%emt 0:00:14]} ({Don't go for} 63. Rxc3+ $2 bxc3+ 64. Kd3 Kb4 $19) 63... Kb5 {[%emt 0:01:19]} 64. Kd2 {[%emt 0:00:31]} a4 {[%emt 0:01:17]} (64... Kb6 $142 65. Ke2 Kb5) 65. Ke2 $19 {[%emt 0:00:24]} Rc8 {[%emt 0:01:29]} (65... Rc1 $19 {and Black stays clearly on top. ...Rb1 would now be deadly.} 66. Rd1 Rc3) 66. Rd1 {[%emt 0:00:44]} a3 {[%emt 0:02:40]} 67. Rd2 {[%emt 0:00:31]} Rc3 {[%emt 0:02:06]} 68. Rd3 {[%emt 0:00:11]} Rc2+ {[%emt 0:00:05]} 69. Rd2 {[%emt 0:00:12]} Rc3 {[%emt 0:00:03]} 70. Rd3 {[%emt 0:00:03]} Rc2+ {[%emt 0:00:22]} 71. Rd2 {[%emt 0:00:07]} Rb2 {[%emt 0:00:13]} 72. Kd3 {[%emt 0:00:28]} Rb1 {[%emt 0:01:29]} 73. Ke2 {[%emt 0:00:30]} Rb2 {[%emt 0:01:07]} (73... Rh1 $17 74. Kf2 Rb1) 74. Kd3 {[%emt 0:00:03]} 1/2-1/2

[Event "French Top 16-A 2024"]
[Site "Chartres"]
[Date "2024.06.01"]
[Round "3.15"]
[White "Delorme, Laurie"]
[Black "Grigorian, Roudolph"]
[Result "1-0"]
[ECO "D37"]
[WhiteElo "2075"]
[BlackElo "2116"]
[Annotator "NA RC"]
[PlyCount "83"]
[EventDate "2024.06.01"]
[EventType "team-tourn"]
[EventCountry "FRA"]
[SourceTitle "playchess.com"]
[Source "ChessBase"]
[SourceQuality "1"]
[TimeControl "40/5400+30:1800+30"]

1. d4 {[%emt 0:00:04]} d5 {[%emt 0:07:27]} 2. c4 {[%emt 0:00:09]} e6 {[%emt 0:00:08]} 3. Nc3 {[%emt 0:00:12]} Nf6 {[%emt 0:00:10]} 4. Nf3 {[%emt 0:00:33]} Be7 {[%emt 0:02:36]} 5. Bf4 {[%emt 0:00:59]} O-O {[%emt 0:04:11]} 6. e3 {[%emt 0:00:15]} a6 {[%emt 0:03:05]} 7. c5 {[%emt 0:13:12]} Nbd7 {[%emt 0:18:36]} 8. h3 {[%emt 0:03:27]} Ne4 {[%emt 0:02:34]} 9. Qc2 {[%emt 0:13:39]} Ndf6 {[%emt 0:05:54]} 10. Bd3 {[%emt 0:02:09]} Nxc3 {[%emt 0:04:21]} 11. Qxc3 {[%emt 0:00:43]} Bd7 {[%emt 0:01:25]} 12. a4 {[%emt 0:05:52]} Ne4 {[%emt 0:24:26]} 13. Qc2 {[%emt 0:00:38]} f5 {[%emt 0:02:48]} 14. h4 {[%emt 0:12:02]} Be8 {[%emt 0:03:22]} 15. h5 {[%emt 0:08:54]} b6 {[%emt 0:00:06]} 16. cxb6 {[%emt 0:05:31]} cxb6 {[%emt 0:00:10]} 17. Bc7 {[%emt 0:00:35]} Bb4+ {[%emt 0:00:11]} 18. Ke2 {[%emt 0:00:04]} Qe7 {[%emt 0:03:57]} 19. Bxb6 {[%emt 0:01:25]} Bd6 {[%emt 0:04:24]} 20. Rac1 {[%emt 0:07:58]} Qb7 {[%emt 0:01:07]} 21. Bc5 {[%emt 0:02:54]} Bxc5 {[%emt 0:05:27]} 22. dxc5 {[%emt 0:01:08]} Rc8 {[%emt 0:02:24]} 23. Bxe4 {[%emt 0:01:07]} fxe4 {[%emt 0:00:29]} 24. Ng1 {[%emt 0:11:12]} Bxh5+ {[%emt 0:00:12]} 25. f3 {[%emt 0:01:08]} d4 {[%emt 0:01:34]} 26. c6 {[%emt 0:01:55]} d3+ {[%emt 0:00:29]} 27. Kd2 {[%emt 0:00:59]} Rxc6 {[%emt 0:01:50]} 28. Qxc6 {[%emt 0:02:48]} Qxb2+ {[%emt 0:00:03]} 29. Kd1 {[%emt 0:00:47]} d2 {[%emt 0:01:02]} 30. Rc2 {[%emt 0:01:41]} Qa1+ {[%emt 0:00:28]} 31. Kxd2 {[%emt 0:00:03]} Rd8+ {[%emt 0:00:10]} 32. Ke2 {[%emt 0:00:08]} exf3+ {[%emt 0:00:52]} 33. gxf3 {[%emt 0:00:51]} Qd1+ {[%emt 0:00:07]} 34. Kf2 {[%emt 0:00:04]} Bg6 {[%emt 0:00:27]} 35. Qxe6+ {[%emt 0:00:53]} Bf7 {[%emt 0:00:02]} 36. Qe4 {[%emt 0:00:14]} Bg6 {[%emt 0:01:21]} 37. Qc4+ {[%emt 0:00:50]} Kh8 {[%emt 0:00:13]} 38. Ra2 {[%emt 0:01:53]} h6 {[%emt 0:00:50]} 39. Qe2 {[%emt 0:00:13]} Qc1 {[%emt 0:00:27]} 40. Kg2 {[%emt 0:00:46]} Bd3 {[%emt 0:00:34]} 41. Qf2 {[%emt 0:03:55]} Qb1 {[%emt 0:06:04]} 42. Nh3 {[%emt 0:01:18]} 1-0

[Event "French Top 16-A 2024"]
[Site "Chartres"]
[Date "2024.06.01"]
[Round "3.16"]
[White "Guichard, Pauline"]
[Black "Broly, Mathilde"]
[Result "1-0"]
[ECO "A50"]
[WhiteElo "2362"]
[BlackElo "2097"]
[Annotator "RC"]
[PlyCount "81"]
[EventDate "2024.06.01"]
[EventType "team-tourn"]
[EventCountry "FRA"]
[SourceTitle "playchess.com"]
[Source "ChessBase"]
[SourceQuality "1"]
[TimeControl "40/5400+30:1800+30"]

1. d4 {[%emt 0:00:23]} Nf6 {[%emt 0:00:14]} 2. c4 {[%emt 0:00:32]} b6 {[%emt 0:00:20]} 3. Nc3 {[%emt 0:05:35]} Bb7 {[%emt 0:00:17]} 4. Qc2 {[%emt 0:00:29]} d5 {[%emt 0:03:11]} 5. cxd5 {[%emt 0:07:49]} Nxd5 {[%emt 0:00:11]} 6. e4 {[%emt 0:00:27]} Nxc3 {[%emt 0:02:27]} 7. bxc3 {[%emt 0:00:15]} e5 {[%emt 0:00:46]} 8. d5 {[%emt 0:08:53]} Bd6 {[%emt 0:19:01]} 9. Nf3 {[%emt 0:04:04]} O-O {[%emt 0:01:12]} 10. Bd3 {[%emt 0:02:26]} Nd7 {[%emt 0:06:11]} 11. O-O {[%emt 0:00:17]} Nc5 {[%emt 0:11:30]} 12. Be3 {[%emt 0:00:36]} Qe8 {[%emt 0:02:02]} 13. a4 {[%emt 0:06:47]} a5 {[%emt 0:01:41]} 14. Nh4 {[%emt 0:10:33]} Bc8 {[%emt 0:02:23]} 15. Bb5 {[%emt 0:00:55]} Qe7 {[%emt 0:03:38]} 16. Nf5 {[%emt 0:00:50]} Bxf5 {[%emt 0:02:08]} 17. exf5 {[%emt 0:00:06]} Rab8 {[%emt 0:06:23]} 18. Rae1 {[%emt 0:06:43]} Qf6 {[%emt 0:00:56]} 19. Bxc5 {[%emt 0:01:29]} Bxc5 {[%emt 0:00:57]} 20. Qe4 {[%emt 0:00:37]} Bd6 {[%emt 0:00:10]} 21. Re3 {[%emt 0:00:24]} Qg5 {[%emt 0:06:12]} 22. Rf3 {[%emt 0:01:15]} f6 {[%emt 0:04:42]} 23. Bd7 {[%emt 0:01:22]} Kh8 {[%emt 0:07:50]} 24. c4 {[%emt 0:04:23]} Bc5 {[%emt 0:07:18]} 25. g3 {[%emt 0:10:07]} Qd2 {[%emt 0:02:42]} 26. Kg2 {[%emt 0:02:18]} Qd4 {[%emt 0:01:19]} 27. Qc2 {[%emt 0:01:06]} Rbd8 {[%emt 0:01:31]} 28. Be6 {[%emt 0:03:29]} Qg4 {[%emt 0:00:58]} 29. Re1 {[%emt 0:02:11]} Rd6 {[%emt 0:03:34]} 30. Re4 {[%emt 0:00:50]} Qg5 {[%emt 0:00:08]} 31. Rh4 {[%emt 0:06:32]} c6 {[%emt 0:00:49]} 32. Qd1 {[%emt 0:02:31]} cxd5 {[%emt 0:00:59]} 33. cxd5 {[%emt 0:00:08]} Re8 {[%emt 0:01:25]} 34. Rd3 {[%emt 0:01:20]} Rexe6 {[%emt 0:01:08]} 35. fxe6 {[%emt 0:03:11]} f5 {[%emt 0:00:40]} 36. Qh5 {[%emt 0:02:07]} Qxh5 {[%emt 0:00:09]} 37. Rxh5 {[%emt 0:00:03]} Rd8 {[%emt 0:00:23]} 38. Rxf5 {[%emt 0:00:21]} e4 {[%emt 0:00:24]} 39. Rd1 {[%emt 0:03:23]} Kg8 {[%emt 0:00:10]} 40. d6 {[%emt 0:01:02]} Re8 {[%emt 0:01:00]} 41. d7 {[%emt 0:30:36]} 1-0